[Event "45th FIDE Olympiad 2024"]
[Site "Budapest"]
[Date "2024.09.16"]
[Round "6.210"]
[White "Haidary, Hameedullah"]
[Black "Araujo Sanchez, Josue"]
[Result "1-0"]
[WhiteElo "2192"]
[BlackElo "2296"]
[PlyCount "171"]
[EventDate "2024.09.05"]
[EventType "team-tourn"]
[EventCountry "HUN"]
[WhiteTeam "Afghanistan"]
[BlackTeam "Dominican Republic"]
[WhiteTeamCountry "AFG"]
[BlackTeamCountry "DOM"]
[TimeControl "40/5400+30:1800+30"]

1. d4 d6 2. e4 Nf6 3. Bd3 e5 4. c3 Nc6 5. Ne2 Be7 6. O-O O-O 7. f4 Bg4 8. d5 Nb8 9. f5 c6 10. c4 Nfd7 11. Nbc3 Bg5 12. h3 Bxe2 13. Qxe2 Bxc1 14. Raxc1 Qg5 15. Bb1 Nf6 16. Rcd1 c5 17. Nb5 Ne8 18. Rd3 Nd7 19. Kh2 Ndf6 20. Rb3 a6 21. Nc3 Rb8 22. Qe1 Kh8 23. Qc1 Qxc1 24. Rxc1 h5 25. Rg1 g5 26. g3 Kg7 27. Bd3 Nc7 28. a4 b6 29. Kg2 Nd7 30. Kf2 Ra8 31. Be2 Rh8 32. Ra3 Kf6 33. Rga1 Rab8 34. Rb3 Ke7 35. Ke3 Rb7 36. Kd2 Nf6 37. Ke3 Rhb8 38. Ra2 Kd8 39. Ra1 Ke7 40. Ra2 Nd7 41. Ra1 h4 42. g4 b5 43. cxb5 axb5 44. Nxb5 Na6 45. Rc3 Ra8 46. b3 Nb4 47. Rd1 Nb8 48. Rd2 N8a6 49. Na3 Nc7 50. Nc4 Kd7 51. Na3 Ke7 52. Bc4 f6 53. Rc1 Rab8 54. Nb5 Nca6 55. Ra1 Kd7 56. Nc3 Kc7 57. Bb5 Kb6 58. Nb1 Kc7 59. Na3 Ra8 60. Bc6 Nb8 61. Bxb7 Kxb7 62. Nb5 Ra6 63. Rc1 Rb6 64. Nxd6+ Rxd6 65. Rxc5 Nd7 66. Rc4 Rb6 67. Rb2 Kb8 68. Kd2 Na6 69. b4 Nac5 70. b5 Nb7 71. Rbc2 Nd6 72. Rc6 Nxe4+ 73. Kd3 Rxc6 74. dxc6 Ndc5+ 75. Ke3 Kc7 76. Rc4 Nxa4 77. Rxa4 Nd6 78. Ra7+ Kb6 79. Rd7 Nxb5 80. Rf7 Nc3 81. c7 Kb7 82. Kd3 Nd5 83. Kc4 Nf4 84. Kc5 e4 85. Kd6 e3 86. Rf8 1-0

[Event "45th FIDE Olympiad 2024"]
[Site "Budapest"]
[Date "2024.09.16"]
[Round "6.211"]
[White "Jimenez Jimenez, Leandro"]
[Black "Kanz, Ahmad Safy"]
[Result "0-1"]
[WhiteElo "2188"]
[BlackElo "1977"]
[PlyCount "82"]
[EventDate "2024.09.05"]
[EventType "team-tourn"]
[EventCountry "HUN"]
[WhiteTeam "Dominican Republic"]
[BlackTeam "Afghanistan"]
[WhiteTeamCountry "DOM"]
[BlackTeamCountry "AFG"]
[TimeControl "40/5400+30:1800+30"]

1. d4 d5 2. c4 e6 3. Nf3 c5 4. g3 Nc6 5. Bg2 Nf6 6. O-O Be7 7. Nc3 O-O 8. cxd5 exd5 9. Bg5 c4 10. Ne5 Be6 11. Nxc6 bxc6 12. b3 Qa5 13. Qc2 Rac8 14. bxc4 dxc4 15. Ne4 Rfd8 16. Rfd1 Rd7 17. Nxf6+ gxf6 18. Bd2 Qh5 19. Bc3 c5 20. Bf3 Bg4 21. Qa4 Rcc7 22. Ba5 Bxf3 23. Bxc7 Bg4 24. Bf4 cxd4 25. Qxc4 Bxe2 26. Qc6 Rd8 27. Qc7 Kf8 28. Re1 d3 29. Bd2 Rd5 30. Rab1 Bd6 31. Rb8+ Kg7 32. Qd8 Bxb8 33. Qxb8 Qh3 34. Bb4 Qf5 35. Qf8+ Kg6 36. Qg8+ Kh5 37. Qxf7+ Kg4 38. Qg8+ Kh3 39. Qg7 Qf3 40. Qxh7+ Rh5 41. Qd7+ f5 {0-} 0-1

[Event "45th FIDE Olympiad 2024"]
[Site "Budapest"]
[Date "2024.09.16"]
[Round "6.212"]
[White "Abdul Khaliq, Wais"]
[Black "Mendez Ramirez, Victor"]
[Result "1-0"]
[WhiteElo "1968"]
[BlackElo "2191"]
[PlyCount "87"]
[EventDate "2024.09.05"]
[EventType "team-tourn"]
[EventCountry "HUN"]
[WhiteTeam "Afghanistan"]
[BlackTeam "Dominican Republic"]
[WhiteTeamCountry "AFG"]
[BlackTeamCountry "DOM"]
[TimeControl "40/5400+30:1800+30"]

1. d4 Nf6 2. c4 b6 3. Nc3 Bb7 4. Bg5 e6 5. e3 Bb4 6. Nge2 h6 7. Bh4 g5 8. Bg3 Ne4 9. Qb3 Nxg3 10. hxg3 Bf8 11. g4 d6 12. Ng3 Nd7 13. f3 Qe7 14. Qa4 a6 15. Bd3 O-O-O 16. b4 c5 17. Be4 d5 18. cxd5 cxd4 19. dxe6 dxc3 20. exd7+ Kb8 21. a3 Qd6 22. Kf2 Qd2+ 23. Ne2 Bxe4 24. Rhd1 Qc2 25. Qxa6 Bb7 26. Qxb6 Be7 27. Rac1 Qg6 28. Qa5 Bd6 29. Nxc3 Bc7 30. Qa4 Qe6 31. Ne4 Qa6 32. Qc2 Bb6 33. Nc5 Qb5 34. a4 Qc6 35. Na6+ Ka7 36. Qxc6 Bxc6 37. Rxc6 Kb7 38. b5 Ra8 39. Rdd6 Ba5 40. Nc5+ Kb8 41. b6 Rd8 42. Rc8+ Rxc8 43. dxc8=Q+ Kxc8 44. b7+ 1-0

[Event "45th FIDE Olympiad 2024"]
[Site "Budapest"]
[Date "2024.09.16"]
[Round "6.213"]
[White "Cogan, Nicolas"]
[Black "Cabralis, Quinn"]
[Result "0-1"]
[WhiteElo "2112"]
[BlackElo "2169"]
[PlyCount "94"]
[EventDate "2024.09.05"]
[EventType "team-tourn"]
[EventCountry "HUN"]
[WhiteTeam "Cote d/^Ivoire"]
[BlackTeam "Trinidad & Tobago"]
[TimeControl "40/5400+30:1800+30"]

1. d4 d5 2. c4 e6 3. Nc3 Nf6 4. cxd5 exd5 5. Bg5 Bb4 6. e3 h6 7. Bxf6 Qxf6 8. Bd3 c5 9. Nge2 c4 10. Bc2 O-O 11. O-O Rd8 12. Nf4 Bxc3 13. bxc3 Nc6 14. Rb1 Rb8 15. a4 Ne7 16. f3 Nf5 17. Qd2 Qg5 18. Rf2 Nh4 19. e4 dxe4 20. fxe4 a6 21. Rb6 Qa5 22. Rb4 b5 23. g3 Ng6 24. Nxg6 fxg6 25. Qf4 Qb6 26. Qf7+ Kh7 27. e5 Qe6 28. Be4 Qg4 29. Bf3 Qg5 30. Qf4 Qe7 31. Be4 Qe6 32. h4 Bb7 33. axb5 Rf8 34. Qe3 Rxf2 35. Kxf2 Qh3 36. Bxb7 Rxb7 37. Kg1 axb5 38. Rb1 Ra7 39. Qf2 Ra3 40. Rc1 b4 41. h5 b3 42. Re1 Ra2 43. hxg6+ Kxg6 44. Qf3 b2 45. e6 Ra1 46. Qe4+ Qf5 47. e7 Qxe4 {0-} 0-1

[Event "45th FIDE Olympiad 2024"]
[Site "Budapest"]
[Date "2024.09.16"]
[Round "6.214"]
[White "Cupid, Kevin"]
[Black "De Gondo, Simplice Armel"]
[Result "1/2-1/2"]
[WhiteElo "2201"]
[BlackElo "2045"]
[PlyCount "147"]
[EventDate "2024.09.05"]
[EventType "team-tourn"]
[EventCountry "HUN"]
[WhiteTeam "Trinidad & Tobago"]
[BlackTeam "Cote d/^Ivoire"]
[TimeControl "40/5400+30:1800+30"]

1. d4 d5 2. Nf3 c5 3. c4 e6 4. cxd5 exd5 5. g3 Nc6 6. Bg2 Nf6 7. O-O Bd6 8. dxc5 Bxc5 9. a3 a5 10. Bg5 Be6 11. Nc3 d4 12. Bxf6 Qxf6 13. Ne4 Qe7 14. b4 axb4 15. Nxc5 Qxc5 16. axb4 Rxa1 17. Qxa1 Qxb4 18. Nxd4 O-O 19. Nxc6 bxc6 20. Bxc6 Bg4 21. e3 Qc5 22. Rc1 Qh5 23. Qd4 Bf3 24. Bxf3 Qxf3 25. Qd1 Qxd1+ 26. Rxd1 Re8 27. f4 h5 28. Kf2 f5 29. h3 Kf7 30. g4 hxg4 31. hxg4 g6 32. Rh1 Kf6 33. Rg1 Re6 34. Kf3 Re7 35. Rg2 Re6 36. Re2 Re7 37. e4 fxe4+ 38. Rxe4 Ra7 39. Re5 Ra3+ 40. Re3 Ra4 41. Rb3 Kf7 42. Rb7+ Kf8 43. Rd7 Rb4 44. Kg3 Ra4 45. Rh7 Kg8 46. Rb7 Kf8 47. Rd7 Rb4 48. Ra7 Rc4 49. Kh4 Rxf4 50. Kg5 Rb4 51. Ra6 Kf7 52. Rf6+ Kg7 53. Rxg6+ Kh7 54. Rf6 Rb5+ 55. Rf5 Rb4 56. Rf7+ Kg8 57. Re7 Kf8 58. Rd7 Kg8 59. Kh5 Rb6 60. g5 Ra6 61. Rb7 Rc6 62. Re7 Ra6 63. Rc7 Rb6 64. Rc8+ Kg7 65. Rc7+ Kg8 66. Kg4 Rb5 67. Re7 Ra5 68. Kh5 Ra6 69. Rb7 Rc6 70. Ra7 Rb6 71. Ra8+ Kg7 72. Ra7+ Kg8 73. Rd7 Ra6 74. Rb7 1/2-1/2

[Event "45th FIDE Olympiad 2024"]
[Site "Budapest"]
[Date "2024.09.16"]
[Round "6.215"]
[White "Manan, Yoboue Hermann"]
[Black "Harper, Ryan"]
[Result "1-0"]
[WhiteElo "2030"]
[BlackElo "2124"]
[PlyCount "153"]
[EventDate "2024.09.05"]
[EventType "team-tourn"]
[EventCountry "HUN"]
[WhiteTeam "Cote d/^Ivoire"]
[BlackTeam "Trinidad & Tobago"]
[TimeControl "40/5400+30:1800+30"]

1. e4 e5 2. Nf3 Nc6 3. Bb5 a6 4. Ba4 Nf6 5. d3 b5 6. Bb3 Bc5 7. c3 d6 8. O-O h6 9. a4 Rb8 10. axb5 axb5 11. Be3 Bb6 12. Re1 O-O 13. Nbd2 Re8 14. Bxb6 Rxb6 15. Nf1 Ne7 16. Ra8 Nc6 17. Ne3 Rb8 18. Ra1 Ne7 19. Nh4 d5 20. Qf3 Be6 21. Bc2 Nh7 22. Qg3 dxe4 23. dxe4 Nc6 24. Ra6 Rb6 25. Rxb6 cxb6 26. Nhf5 Bxf5 27. Nxf5 Qg5 28. Bd3 Qxg3 29. hxg3 Rd8 30. Bxb5 Na7 31. Bc4 Nf6 32. f3 Nc6 33. Ne3 Rb8 34. Nd5 b5 35. Nxf6+ gxf6 36. Bd5 Ne7 37. Bb3 b4 38. c4 Nc6 39. c5 Rb5 40. Rc1 Nd4 41. Ba4 Ra5 42. Bd1 Ra6 43. Kf1 Kf8 44. Rc4 Ke7 45. Rxb4 Ra1 46. Rb7+ Ke6 47. Ke1 Rc1 48. b4 Rb1 49. Kd2 Rb2+ 50. Kc3 Rb1 51. Ba4 Rc1+ 52. Kd3 Rb1 53. Bd7+ Ke7 54. b5 Rc1 55. Bg4+ Kd8 56. c6 Nxb5 57. Rxb5 Rxc6 58. Rb7 Rd6+ 59. Ke2 Ke8 60. Bh5 Kf8 61. Bxf7 Kg7 62. Be8+ Kf8 63. Bg6 Kg8 64. g4 Rc6 65. Kf2 Ra6 66. Kg3 Rd6 67. Bf5 Rd1 68. Kh2 Rd6 69. Rh7 Rb6 70. Kg3 Rb1 71. Rxh6 Kg7 72. Rh7+ Kg8 73. Rc7 Ra1 74. Be6+ Kh8 75. Rf7 Ra6 76. Rxf6 Kg7 77. g5 1-0

[Event "45th FIDE Olympiad 2024"]
[Site "Budapest"]
[Date "2024.09.16"]
[Round "6.216"]
[White "McIntosh, Isaiah"]
[Black "Nean, Franck Anderson"]
[Result "1-0"]
[WhiteElo "2249"]
[BlackElo "1917"]
[PlyCount "67"]
[EventDate "2024.09.05"]
[EventType "team-tourn"]
[EventCountry "HUN"]
[WhiteTeam "Trinidad & Tobago"]
[BlackTeam "Cote d/^Ivoire"]
[TimeControl "40/5400+30:1800+30"]

1. d4 Nf6 2. c4 e6 3. g3 d5 4. Nf3 Nc6 5. Bg2 dxc4 6. O-O Bd7 7. Nc3 Be7 8. Ne5 Na5 9. Qc2 Rb8 10. b3 Nc6 11. Rd1 Nb4 12. Qd2 cxb3 13. axb3 a6 14. Bb2 c6 15. e4 O-O 16. Qe2 Qc7 17. Rac1 Bc8 18. d5 exd5 19. Nxd5 Nbxd5 20. exd5 c5 21. b4 Re8 22. bxc5 Bxc5 23. d6 Qb6 24. Qc2 Bd7 25. Nxd7 Nxd7 26. Bh3 Rbd8 27. Rd5 Bxd6 28. Bd4 Qb4 29. Bc3 Qb6 30. Ba5 Qa7 31. Bxd8 Ba3 32. Bxd7 Rxd8 33. Qc7 Rf8 34. Rb1 1-0

[Event "45th FIDE Olympiad 2024"]
[Site "Budapest"]
[Date "2024.09.16"]
[Round "6.217"]
[White "Carpenter, Paul A"]
[Black "El Jawich, Amro"]
[Result "0-1"]
[WhiteElo "1985"]
[BlackElo "2296"]
[PlyCount "38"]
[EventDate "2024.09.05"]
[EventType "team-tourn"]
[EventCountry "HUN"]
[WhiteTeam "Jersey"]
[BlackTeam "Lebanon"]
[BlackTeamCountry "LBN"]
[TimeControl "40/5400+30:1800+30"]

1. f4 g6 2. Nf3 Bg7 3. e4 d5 4. exd5 Qxd5 5. d4 Nf6 6. Nc3 Qd6 7. Ne5 O-O 8. Bc4 a6 9. a4 Nc6 10. Be3 Nb4 11. O-O Be6 12. Bxe6 Qxe6 13. f5 gxf5 14. Rf3 Ng4 15. Bf4 Rad8 16. Rg3 Kh8 17. Rxg4 fxg4 18. Kh1 c5 19. Ne4 Rxd4 {0-} 0-1

[Event "45th FIDE Olympiad 2024"]
[Site "Budapest"]
[Date "2024.09.16"]
[Round "6.218"]
[White "Khoder, Akram"]
[Black "Belzo, Krzysztof"]
[Result "1-0"]
[WhiteElo "2239"]
[BlackElo "2076"]
[PlyCount "65"]
[EventDate "2024.09.05"]
[EventType "team-tourn"]
[EventCountry "HUN"]
[WhiteTeam "Lebanon"]
[BlackTeam "Jersey"]
[WhiteTeamCountry "LBN"]
[TimeControl "40/5400+30:1800+30"]

1. d4 d6 2. c4 g6 3. Nc3 Bg7 4. e4 Nd7 5. Be2 e5 6. Nf3 exd4 7. Nxd4 Nc5 8. O-O Ne6 9. Be3 Ne7 10. Qa4+ Bd7 11. Nxe6 fxe6 12. Qc2 b6 13. f4 O-O 14. Bg4 Nc6 15. Qd2 Qe7 16. Rad1 Na5 17. b3 Nb7 18. Nd5 Qd8 19. f5 exf5 20. Bg5 Qe8 21. Nxc7 Qe5 22. Nxa8 fxg4 23. Qd5+ Qxd5 24. Rxf8+ Kxf8 25. exd5 Nc5 26. Nc7 Ne4 27. Bf4 g5 28. Be3 Nc3 29. Rf1+ Kg8 30. Bxg5 Bd4+ 31. Kh1 Ne4 32. Bh4 g3 33. Bxg3 1-0

[Event "45th FIDE Olympiad 2024"]
[Site "Budapest"]
[Date "2024.09.16"]
[Round "6.219"]
[White "Mooney, Graham"]
[Black "Arkadan, Adib"]
[Result "0-1"]
[WhiteElo "1935"]
[BlackElo "2181"]
[PlyCount "84"]
[EventDate "2024.09.05"]
[EventType "team-tourn"]
[EventCountry "HUN"]
[WhiteTeam "Jersey"]
[BlackTeam "Lebanon"]
[BlackTeamCountry "LBN"]
[TimeControl "40/5400+30:1800+30"]

1. e4 c5 2. Nf3 d6 3. d4 cxd4 4. Nxd4 Nf6 5. Nc3 Nc6 6. Bc4 e6 7. Be3 Be7 8. f3 a6 9. Qd2 Bd7 10. Bb3 Rc8 11. O-O-O b5 12. g4 Na5 13. g5 Nh5 14. Rhg1 Nc4 15. Bxc4 Rxc4 16. Kb1 g6 17. Nce2 e5 18. Nb3 b4 19. Ng3 Nxg3 20. Rxg3 Be6 21. Qf2 h5 22. h4 O-O 23. Bb6 Qe8 24. Na5 Rc8 25. Nb3 Qb5 26. Be3 Rc4 27. Rg2 Rfc8 28. Qf1 Bh3 29. Qe2 Bxg2 30. Qxg2 Rxc2 31. Qxc2 Rxc2 32. Kxc2 Qe2+ 33. Bd2 Qxf3 34. Re1 Qf2 35. Kb1 a5 36. Rd1 a4 37. Nc1 Qxh4 38. Re1 Bxg5 39. Bxb4 Bxc1 40. Kxc1 d5 41. Bd2 d4 42. Kc2 Qg3 {0-} 0-1

[Event "45th FIDE Olympiad 2024"]
[Site "Budapest"]
[Date "2024.09.16"]
[Round "6.220"]
[White "Assaad, Joe"]
[Black "Forbes, Garry"]
[Result "1-0"]
[WhiteElo "2150"]
[BlackElo "1858"]
[PlyCount "53"]
[EventDate "2024.09.05"]
[EventType "team-tourn"]
[EventCountry "HUN"]
[WhiteTeam "Lebanon"]
[BlackTeam "Jersey"]
[WhiteTeamCountry "LBN"]
[TimeControl "40/5400+30:1800+30"]

1. d4 g6 2. e4 Bg7 3. Nc3 d6 4. Be3 a6 5. h4 h6 6. Qd2 b5 7. O-O-O c6 8. h5 g5 9. f4 gxf4 10. Bxf4 Nd7 11. Nf3 Nb6 12. e5 d5 13. g4 b4 14. Nb1 a5 15. Rg1 Nc4 16. Qf2 Qb6 17. g5 Be6 18. gxh6 Bxh6 19. Rxg8+ Rxg8 20. Bxh6 O-O-O 21. Nbd2 Rh8 22. Bg5 Rxh5 23. Bxe7 Rg8 24. Bc5 Qd8 25. Nxc4 dxc4 26. d5 Bxd5 27. Bxc4 1-0

[Event "45th FIDE Olympiad 2024"]
[Site "Budapest"]
[Date "2024.09.16"]
[Round "6.221"]
[White "Gabriel, Davidson"]
[Black "Rakotomaharo, Fy Antenaina"]
[Result "0-1"]
[WhiteElo "2043"]
[BlackElo "2440"]
[PlyCount "68"]
[EventDate "2024.09.05"]
[EventType "team-tourn"]
[EventCountry "HUN"]
[WhiteTeam "Haiti"]
[BlackTeam "Madagascar"]
[WhiteTeamCountry "HAI"]
[BlackTeamCountry "MAD"]
[TimeControl "40/5400+30:1800+30"]

1. d4 d5 2. c4 e6 3. Nf3 Nf6 4. g3 Be7 5. Bg2 O-O 6. O-O c6 7. Qc2 b6 8. Bf4 Bb7 9. Nbd2 Nh5 10. Be3 Nd7 11. g4 Nhf6 12. h3 c5 13. dxc5 bxc5 14. Bf4 d4 15. e3 dxe3 16. fxe3 Ne8 17. Rad1 Qc8 18. Ne4 Nef6 19. Nc3 Rd8 20. e4 Nf8 21. Rxd8 Qxd8 22. Rd1 Qb6 23. e5 N6d7 24. Ne4 Rd8 25. Re1 Ng6 26. Bg3 Qa5 27. Nc3 Nb8 28. b3 Nc6 29. Rd1 Rxd1+ 30. Nxd1 Nb4 31. Qd2 Qxa2 32. Qd7 Bc6 33. Qc8+ Bf8 34. Nf2 Qxb3 {0-} 0-1

[Event "45th FIDE Olympiad 2024"]
[Site "Budapest"]
[Date "2024.09.16"]
[Round "6.222"]
[White "Andrianiaina, Heritiana"]
[Black "Etienne, Angelo"]
[Result "1/2-1/2"]
[WhiteElo "2149"]
[BlackElo "2122"]
[PlyCount "185"]
[EventDate "2024.09.05"]
[EventType "team-tourn"]
[EventCountry "HUN"]
[WhiteTeam "Madagascar"]
[BlackTeam "Haiti"]
[WhiteTeamCountry "MAD"]
[BlackTeamCountry "HAI"]
[TimeControl "40/5400+30:1800+30"]

1. e4 c5 2. Nf3 Nc6 3. d4 cxd4 4. Nxd4 Nf6 5. Nc3 e5 6. Ndb5 d6 7. Bg5 a6 8. Bxf6 gxf6 9. Na3 b5 10. Nd5 Be6 11. g3 Bg7 12. Bg2 O-O 13. O-O Rc8 14. c3 f5 15. exf5 Bxf5 16. Nc2 Na5 17. Nce3 Be6 18. a4 Nc4 19. axb5 axb5 20. Nxc4 bxc4 21. Ra6 Kh8 22. Nb4 Qg5 23. Rxd6 Rfd8 24. Nc6 Rxd6 25. Qxd6 Bf8 26. Qxe5+ Qxe5 27. Nxe5 Rb8 28. Rb1 Ba3 29. Bf1 Rxb2 30. Rxb2 Bxb2 31. Bxc4 Bxc4 32. Nxc4 Bxc3 33. Kg2 Kg7 34. Ne3 Be1 35. Kf3 Kg6 36. Ng2 Ba5 37. Ke4 Bb6 38. Nf4+ Kg5 39. f3 Ba7 40. Ne2 Kf6 41. Nd4 Bb8 42. Nf5 Ba7 43. Ne3 Bc5 44. Nd5+ Ke6 45. g4 f6 46. Nf4+ Kf7 47. Kf5 Bd6 48. h4 Be5 49. g5 Bb2 50. g6+ hxg6+ 51. Nxg6 Kg7 52. Nf4 Ba1 53. Nh5+ Kf7 54. Ng3 Bb2 55. Ne4 Kg7 56. Kg4 Kg6 57. Nd6 Bc3 58. Nf5 Bb2 59. h5+ Kh7 60. Kh4 Bc3 61. Ne3 Kh6 62. Ng4+ Kg7 63. Ne3 Ba1 64. f4 Bb2 65. f5 Bc3 66. Ng4 Ba1 67. Kg3 Bb2 68. Kf3 Ba1 69. Ke4 Bb2 70. Kd5 Ba1 71. Ke6 Bb2 72. Nxf6 Kh6 73. Ng4+ Kxh5 74. Ne5 Kh6 75. f6 Bc3 76. Ng4+ Kh7 77. f7 Kg7 78. Ke7 Bb4+ 79. Ke8 Ba3 80. Ne5 Kf6 81. Nc4 Bb4 82. Nb6 Ba3 83. Nd5+ Ke6 84. Nc7+ Kf6 85. Nb5 Bb4 86. Nc3 Ba3 87. Nd5+ Ke6 88. Nb6 Bb4 89. Nd7 Ba3 90. Nf8+ Kf6 91. Nh7+ Ke6 92. f8=Q Bxf8 93. Nxf8+ 1/2-1/2

[Event "45th FIDE Olympiad 2024"]
[Site "Budapest"]
[Date "2024.09.16"]
[Round "6.223"]
[White "Victor, Wyclef"]
[Black "Andriamasoandro, Miora"]
[Result "0-1"]
[WhiteElo "1924"]
[BlackElo "2116"]
[PlyCount "106"]
[EventDate "2024.09.05"]
[EventType "team-tourn"]
[EventCountry "HUN"]
[WhiteTeam "Haiti"]
[BlackTeam "Madagascar"]
[WhiteTeamCountry "HAI"]
[BlackTeamCountry "MAD"]
[TimeControl "40/5400+30:1800+30"]

1. e4 c5 2. Nf3 d6 3. d4 cxd4 4. Nxd4 Nf6 5. Nc3 a6 6. Be2 e5 7. Nb3 Be7 8. O-O Be6 9. Be3 Nbd7 10. Qd2 Qc7 11. Rad1 O-O 12. f4 b5 13. a3 Nb6 14. Kh1 Nc4 15. Qc1 Nxa3 16. f5 Bc8 17. Bg5 Bb7 18. Bxf6 Bxf6 19. Rf3 b4 20. bxa3 bxc3 21. Qe3 Rfd8 22. Bd3 a5 23. Rff1 Qc6 24. Qf2 Qa4 25. Qe1 Rdc8 26. Ra1 d5 27. Qe2 Qc6 28. exd5 Qxd5 29. a4 e4 30. Bb5 Qe5 31. Qe3 h6 32. Rad1 Bd5 33. Nc5 Bg5 34. Nd7 Bxe3 35. Nxe5 Bd2 36. f6 g6 37. Nd7 Rc7 38. Nb6 Rd8 39. Nxd5 Rxd5 40. Rb1 Rd4 41. g3 Kh7 42. Kg2 g5 43. Rf5 Kg6 44. g4 Bf4 45. Re1 h5 46. h3 hxg4 47. hxg4 Rc8 48. Ba6 Rh8 49. Be2 Rd2 50. Rxa5 Rh2+ 51. Kf1 Bg3 52. Kg1 Rh4 53. Rf1 Rxe2 {0-} 0-1

[Event "45th FIDE Olympiad 2024"]
[Site "Budapest"]
[Date "2024.09.16"]
[Round "6.224"]
[White "Rakotomaharavo, Dylan"]
[Black "Guillaume, Jude Mirvens"]
[Result "1-0"]
[WhiteElo "2078"]
[BlackElo "1956"]
[PlyCount "105"]
[EventDate "2024.09.05"]
[EventType "team-tourn"]
[EventCountry "HUN"]
[WhiteTeam "Madagascar"]
[BlackTeam "Haiti"]
[WhiteTeamCountry "MAD"]
[BlackTeamCountry "HAI"]
[TimeControl "40/5400+30:1800+30"]

1. e4 c5 2. Nf3 d6 3. d4 cxd4 4. Nxd4 Nf6 5. f3 a6 6. c4 e6 7. Nc3 Nc6 8. Be3 Be7 9. Qd2 Qc7 10. Rc1 Bd7 11. Nd5 Qd8 12. Nxc6 Bxc6 13. Bb6 Qc8 14. Nc7+ Kf8 15. Nxa8 Qxa8 16. Be2 Qc8 17. O-O Nd7 18. Bd4 Qc7 19. b4 b6 20. a3 Bb7 21. Rfd1 e5 22. Be3 f6 23. Rc3 Kf7 24. Qa2 Kg6 25. Bd3 h6 26. f4 Rc8 27. f5+ Kh7 28. Bb1 Qd8 29. Bf2 Qe8 30. Qe2 Qf7 31. Rdc1 a5 32. Ba2 axb4 33. c5 Qe8 34. axb4 bxc5 35. Be6 Rc7 36. Rg3 Nf8 37. Bb3 g5 38. fxg6+ Nxg6 39. bxc5 dxc5 40. Qg4 Bc8 41. Be6 Bxe6 42. Qxe6 Nf4 43. Qg4 Qf7 44. Be3 Qg6 45. Qf3 Qh5 46. Rg4 Rd7 47. Rxf4 Qxf3 48. Rxf3 Rc7 49. Rh3 Bf8 50. Bf2 c4 51. Rhc3 Bc5 52. Rxc4 Bxf2+ 53. Kxf2 1-0

[Event "45th FIDE Olympiad 2024"]
[Site "Budapest"]
[Date "2024.09.16"]
[Round "6.225"]
[White "Bai, Adelard"]
[Black "Liyanage, Ranindu Dilshan"]
[Result "1-0"]
[WhiteElo "2378"]
[BlackElo "2366"]
[PlyCount "75"]
[EventDate "2024.09.05"]
[EventType "team-tourn"]
[EventCountry "HUN"]
[WhiteTeam "Chinese Taipei"]
[BlackTeam "Sri Lanka"]
[BlackTeamCountry "SRI"]
[TimeControl "40/5400+30:1800+30"]

1. d4 Nf6 2. c4 g6 3. Nc3 Bg7 4. e4 d6 5. Be2 O-O 6. Be3 Na6 7. h4 h5 8. Nf3 e5 9. d5 Nc5 10. Ng5 a5 11. f3 c6 12. dxc6 bxc6 13. Qd2 Qe7 14. O-O-O Nb7 15. c5 dxc5 16. Na4 Be6 17. Nxe6 Qxe6 18. Qc2 Rfd8 19. Bc4 Qe8 20. Rxd8 Rxd8 21. Rd1 Rxd1+ 22. Qxd1 Bf8 23. Qb3 Nd6 24. Nxc5 Nxc4 25. Qxc4 Bxc5 26. Qxc5 Qe6 27. Kb1 Qd7 28. Kc2 Qe6 29. Qxa5 Qc4+ 30. Qc3 Qf1 31. a4 Qxg2+ 32. Bd2 Qf1 33. a5 Qb5 34. Qd3 Qa4+ 35. Qb3 Qa1 36. Qb8+ Kh7 37. Qxe5 Qa4+ 38. b3 1-0

[Event "45th FIDE Olympiad 2024"]
[Site "Budapest"]
[Date "2024.09.16"]
[Round "6.226"]
[White "Amarathunga, Kosala Sandeepa Cham"]
[Black "Song, Raymond"]
[Result "0-1"]
[WhiteElo "1956"]
[BlackElo "2503"]
[PlyCount "88"]
[EventDate "2024.09.05"]
[EventType "team-tourn"]
[EventCountry "HUN"]
[WhiteTeam "Sri Lanka"]
[BlackTeam "Chinese Taipei"]
[WhiteTeamCountry "SRI"]
[TimeControl "40/5400+30:1800+30"]

1. e4 c5 2. Nf3 e6 3. b3 b6 4. c4 Bb7 5. Nc3 Nf6 6. Bd3 Nc6 7. O-O d6 8. Bc2 Nd4 9. Re1 Be7 10. Nxd4 cxd4 11. Nb5 e5 12. d3 a6 13. Na3 O-O 14. f4 Bc6 15. Nb1 b5 16. Qf3 bxc4 17. dxc4 Nd7 18. Qg4 Bf6 19. f5 a5 20. Nd2 a4 21. Rb1 axb3 22. axb3 Ra2 23. Bd3 Nc5 24. Bf1 Bg5 25. Re2 Be3+ 26. Rxe3 dxe3 27. Nf3 Bxe4 28. Rb2 Rxb2 29. Bxb2 Qf6 30. Nh4 Rb8 31. Ba3 h5 32. Qxh5 Rxb3 33. Bxc5 dxc5 34. g4 Rb1 35. g5 e2 36. Qxe2 Qxg5+ 37. Ng2 Bxg2 38. Qxg2 Qxg2+ 39. Kxg2 e4 40. h3 Kh7 41. Be2 Kh6 42. Kg3 Kg5 43. Bg4 Rb3+ 44. Kf2 Kf4 {0-} 0-1

[Event "45th FIDE Olympiad 2024"]
[Site "Budapest"]
[Date "2024.09.16"]
[Round "6.227"]
[White "Yang, Ching Wei"]
[Black "Kodithuwakku, K K Dinujaya"]
[Result "0-1"]
[WhiteElo "2121"]
[BlackElo "1827"]
[PlyCount "74"]
[EventDate "2024.09.05"]
[EventType "team-tourn"]
[EventCountry "HUN"]
[WhiteTeam "Chinese Taipei"]
[BlackTeam "Sri Lanka"]
[BlackTeamCountry "SRI"]
[TimeControl "40/5400+30:1800+30"]

1. e4 e5 2. Nf3 Nc6 3. Bb5 a6 4. Ba4 Nf6 5. O-O d6 6. Re1 b5 7. Bb3 Na5 8. d4 Nxb3 9. axb3 Nd7 10. Nc3 Bb7 11. Nd5 c6 12. Ne3 g6 13. dxe5 dxe5 14. Ng4 f6 15. Qe2 h5 16. Ne3 Qe7 17. Bd2 Qf7 18. Ba5 Be7 19. Red1 Bd8 20. Bxd8 Rxd8 21. Qd3 Qe7 22. Nh4 Kf7 23. Nef5 gxf5 24. Nxf5 Nc5 25. Qg3 Qf8 26. Rxd8 Qxd8 27. Qg7+ Ke6 28. b4 Nxe4 29. Ne3 Qc8 30. Rd1 Ng5 31. h4 Nf7 32. Qg6 Rd8 33. Re1 c5 34. Qf5+ Ke7 35. Qxh5 Rg8 36. Rd1 Bxg2 37. Nf5+ Qxf5 {0-} 0-1

[Event "45th FIDE Olympiad 2024"]
[Site "Budapest"]
[Date "2024.09.16"]
[Round "6.228"]
[White "Bandara, Dhanushka"]
[Black "Wang, Ting-Hao"]
[Result "0-1"]
[WhiteElo "1903"]
[BlackElo "1842"]
[PlyCount "76"]
[EventDate "2024.09.05"]
[EventType "team-tourn"]
[EventCountry "HUN"]
[WhiteTeam "Sri Lanka"]
[BlackTeam "Chinese Taipei"]
[WhiteTeamCountry "SRI"]
[TimeControl "40/5400+30:1800+30"]

1. e4 c6 2. d4 d5 3. exd5 cxd5 4. Bd3 Nc6 5. c3 Nf6 6. h3 g6 7. Qc2 e5 8. dxe5 Nxe5 9. Qe2 Qe7 10. Bb5+ Bd7 11. Bxd7+ Nfxd7 12. Be3 Bg7 13. Nd2 O-O 14. Ngf3 Rfe8 15. O-O Nxf3+ 16. Nxf3 Bh6 17. Rfe1 Bxe3 18. Qxe3 Qxe3 19. Rxe3 Rxe3 20. fxe3 Re8 21. Kf2 Re6 22. Rd1 Nf6 23. Ke2 Rb6 24. Rd2 Kf8 25. Kd3 Ke7 26. Kd4 h6 27. Ne5 Ne4 28. Rc2 Ng3 29. Rf2 Nf5+ 30. Kxd5 Rb5+ 31. Ke4 Nd6+ 32. Kd4 Ke6 33. c4 Rxe5 34. b3 Nf5+ 35. Kc3 a5 36. g4 Nxe3 37. Kd2 f5 38. Rf3 fxg4 {0-} 0-1

[Event "45th FIDE Olympiad 2024"]
[Site "Budapest"]
[Date "2024.09.16"]
[Round "6.229"]
[White "Giron, Jorge Ernesto"]
[Black "Blackman, Justin"]
[Result "0-1"]
[WhiteElo "2276"]
[BlackElo "2265"]
[PlyCount "110"]
[EventDate "2024.09.05"]
[EventType "team-tourn"]
[EventCountry "HUN"]
[WhiteTeam "El Salvador"]
[BlackTeam "Barbados"]
[WhiteTeamCountry "ESA"]
[BlackTeamCountry "BAR"]
[TimeControl "40/5400+30:1800+30"]

1. e4 c5 2. Nf3 d6 3. d4 cxd4 4. Nxd4 Nf6 5. Nc3 a6 6. Be3 e5 7. Nb3 Be7 8. f3 Be6 9. Qd2 h5 10. O-O-O Nbd7 11. Kb1 Rc8 12. Bd3 b5 13. h3 h4 14. f4 Nb6 15. Qf2 Nbd7 16. fxe5 Nxe5 17. Nd4 O-O 18. Nce2 Nh5 19. g4 hxg3 20. Qg1 Bh4 21. Nf4 Nxf4 22. Bxf4 Qa5 23. b3 Qc3 24. Ne2 Qc7 25. Rc1 Bc4 26. Qe3 Qa5 27. Nxg3 Bxd3 28. cxd3 Rc3 29. Bxe5 dxe5 30. Nf5 Rxc1+ 31. Rxc1 Bf6 32. Rc6 Rd8 33. Kb2 Qb4 34. a3 Qf8 35. Rxa6 b4 36. axb4 Qxb4 37. Rb6 Qa5 38. Rc6 Ra8 39. Qc1 Bg5 40. Qb1 Qa3+ 41. Kc2 Qb4 42. Rc3 g6 43. Ng3 Qd4 44. Nh1 Kg7 45. b4 Ra4 46. b5 Qa7 47. Rb3 Ra2+ 48. Rb2 Qc5+ 49. Kd1 Ra1 50. Qxa1 Qg1+ 51. Kc2 Qxa1 52. b6 Qxh1 53. b7 Qc1+ 54. Kb3 Qc7 55. Ka4 Qb8 {0-} 0-1